Workbook

Sheet Readme First

Sheet Emergency Parameters
A1: Emergency Response Budgeting Template
A2: Resource Requirements
D10: Emergency in:
F13: Template version: Aug 2014
A14: I. Population Projection and Operational Setup
A15: 1 | B15: Projected number of population | F15: 20000
A17: 2 | B17: Projected duration of emergency (in months) | F17: 6
A19: 3 | B19: If the emergency is due to a new pillar, select one as appropriate.
B21: 3.1 | C21: Name of a proposed new Population Planning Group (PPG)
A23: 4 | B23: If the emergency is to be absorbed into an existing PPG
B25: 4.1 | C25: Name of the existing PPG:
A27: 5 | B27: If new office(s) are to be established:
B29: 5.1 | C29: Name of a new office:
B31: 5.2 | C31: Name of a new office:
B33: 5.3 | C33: Name of a new office:
A35: 6 | B35: If new site (camps) are to be established:
B37: 6.1 | C37: Name of a new site (camp):
B39: 6.2 | C39: Name of a new site (camp):
B41: 6.3 | C41: Name of a new site (camp):
B43: 6.4 | C43: Name of a new site (camp):
A45: II. Quick Assessments on the Needs of Population:
B46: Rights Groups | C46: Problems (Impact Indicators/ Needs) | F46: % (Estimate)
A48: 7 | B48: Basic Needs and Essential Services
B49: 7.1 | C49: Shelter or infrastructure is insufficient or needs improvement
C50: % of households (NOT) living in adequate dwellings | F50: 1
B51: 7.2 | C51: Basic and domestic items insufficient or need replenishment
C52: % of households whose needs for basic and domestic items | F52: 1
B53: 7.3 | C53: Health status of the population is unsatisfactory or needs constant attention
C54: Extent persons of concern (LACK) access to primary health care | F54: 1
B55: 7.4 | C55: Conditions of sanitation or hygiene are unsatisfactory or need constant attention
C56: % of population who are (IN NEEDS) of sanitation assistance | F56: 1
B57: 7.5 | C57: Access to education is insufficient or needs constant attention
C58: % of primary school-aged children (NOT) enrolled in primary education | F58: 0.2
B59: 7.6 | C59: Supply of potable water insufficient or needs constant attention
C60: % of population who are (IN NEEDS) of potable water | F60: 1
B61: 7.7 | C61: Services for persons with specific needs are insufficient
C62: % of PoC with psycho/ social needs (WITHOUT) access to services for their specific needs | F62: 0.2
B63: 7.8 | C63: Food security insufficient or needs constant attention
C64: Extent persons of concern are (NOT) food secure | F64: 1
B65: 7.9 | C65: Access to energy is insufficient
C66: % of household (WITHOUT) access to sustainable energy | F66: 1
B67: 7.10 | C67: Nutritional well-being insufficient or needs constant attention
C68: % of population who are (IN NEEDS) of nutritional services | F68: 0.2
A70: 8 | B70: Fair Protection Process and Documentation
B71: 8.1 | C71: Reception conditions are inadequate
C72: Extent reception conditions (DOES NOT) meet minimum standards | F72: 1
B73: 8.2 | C73: Level of individual documentation insufficient
C74: % of persons of concern who (DO NOT) have a valid identity document | F74: 1
A76: 9 | B76: Favourable Protection Environment
B77: 9.1 | C77: Access to legal remedies or legal assistance inadequate
C78: Extent persons of concern (DO NOT) have access to legal assistance | F78: 1
B79: 9.2 | C79: Access to the territory is insufficient or refoulement is occurring
C80: Extent border authorities (DO NOT) refer asylum seekers to competent authorities | F80: 1
A82: 10 | B82: Security from Violence and Exploitation
B83: 10.1 | C83: SGBV poses a risk and quality of response is inadequate or needs to be maintained
C84: Extent known SGBV survivors (DO NOT) receive appropriate support | F84: 1
B85: 10.2 | C85: Children face specific protection risks
C86: % of identified children of concern with specific needs | F86: 0.3
B87: 10.3 | C87: Effects of armed conflict pose protection risks
C88: % of monitored sites where persons of concern and the civilian community are threatened by the presence of armed actors | F88: 1
A90: III. Defining Initial Staffing Requirements (temporary assistance upto 6 months)
A91: 11 | B91: Initial Staffing Requirements (temporary assistance)
D98: Function Type | E98: Grade | F98: # of staff
A128: Listings
A130: Grade | C130: Situation/ Pillar | E130: Country Code
A131: D1 | C131: Refugee, Pillar I | E131: Afghanistan
A132: FS4 | C132: Stateless, Pillar II | E132: Albania
A133: FS5 | C133: Returnee, Pillar III | E133: Algeria
A134: G1 | C134: IDP, Pillar IV | E134: Angola
A135: G2 | E135: Argentina
A136: G3 | E136: Armenia
A137: G4 | C137: Function | E137: Australia
A138: G5 | C138: Administration/Finance | E138: Austria
A139: G6 | C139: Community Services | E139: Azerbaijan
A140: G7 | C140: Durable Solutions - Protection | E140: Bangladesh
A141: NA | C141: External Relations | E141: Belarus
A142: NB | C142: Field - Protection | E142: Belgium
A143: NC | C143: Safety | E143: Benin
A144: ND | C144: Finance | E144: Bosnia and Herzegovina
A145: P1 | C145: Finance (Project Control) | E145: Botswana
A146: P2 | C146: Human Resources | E146: Brazil
A147: P3 | C147: Information Technology | E147: Bulgaria
A148: P4 | C148: IPR Clearance Not Required | E148: Burkina Faso
A149: P5 | C149: Legal - Protection | E149: Burundi
C150: Programme | E150: Cameroon
A151: Y/N | C151: Protection | E151: Canada
A152: Y | C152: Public Information | E152: Central African Republic
A153: N | C153: Supply | E153: Chad
C154: Telecommunications | E154: Chile
E155: China
C156: Site | E156: Colombia
C157: New sites | E157: Congo
C158: Existing sites | E158: Costa Rica
C159: New and existing sites | E159: Cote d'Ivoire
E160: Croatia
C161: Diseases | E161: Cuba
C162: Respiratory infections | E162: Cyprus
C163: Malaria | E163: Czech Republic
C164: Diarrhoea | E164: Democratic Republic of the Congo
E165: Denmark
E166: Djibouti
E167: Dominican Republic
E168: Ecuador
E169: Egypt
E170: Eritrea
E171: Estonia
E172: Ethiopia
E173: France
E174: Gabon
E175: Gambia
E176: Georgia
E177: Germany
E178: Ghana
E179: Greece
E180: Guatemala
E181: Guinea
E182: Guinea Bissau
E183: Haiti
E184: Honduras
E185: Hong Kong, China
E186: Hungary
E187: India
E188: Indonesia
E189: Iran
E190: Iraq
E191: Ireland
E192: Israel
E193: Italy
E194: Japan
E195: Jordan
E196: Kazakhstan
E197: Kenya
E198: Kosovo
E199: Kuwait
E200: Kyrgyzstan
E201: Lebanon
E202: Liberia
E203: Libya Arab Jamahiriya
E204: Malawi
E205: Malaysia
E206: Mali
E207: Malta
E208: Mauritania
E209: Mexico
E210: Moldova
E211: Montenegro
E212: Morocco
E213: Mozambique
E214: Myanmar
E215: Namibia
E216: Nepal
E217: Netherlands
E218: Nicaragua
E219: Niger
E220: Nigeria
E221: Pakistan
E222: Panama
E223: Philippines
E224: Poland
E225: Republic of Korea
E226: Republic of South Africa
E227: Romania
E228: Russian Federation
E229: Rwanda
E230: Saudi Arabia
E231: Senegal
E232: Serbia
E233: Sierra Leone
E234: Slovakia
E235: Somalia
E236: South Sudan
E237: Spain
E238: Sri Lanka
E239: Sudan
E240: Sweden
E241: Switzerland
E242: Syrian Arab Republic
E243: Tajikistan
E244: Tanzania
E245: Thailand
E246: The former Yug. Rep. of Macedonia
E247: Togo
E248: Trinidad and Tobago
E249: Tunisia
E250: Turkey
E251: Turkmenistan
E252: Uganda
E253: Ukraine
E254: United Arab Emirates
E255: United Kingdom
E256: United States (Washington)
E257: USA ( NY)
E258: Uzbekistan
E259: Venezuela
E260: Western Sahara
E261: Yemen
E262: Zambia
E263: Zimbabwe

Sheet A.Ops
A1: Annex II.A: Operations Budget (Based on Emergency Parameters* section I and II)
A2: Emergency in: | C2: ='Emergency Parameters'!E10 -> 0
A4: Rights Group | B4: Objectives | C4: Outputs / Budget Lines | E4: Qty (Target) | F4: Unit | G4: Unit Cost | H4: Time | I4: Amount (USD)
A5: Basic Needs and Essential Services | I5: =SUM(I6,I10,I13,I20,I24,I29,I33,I36,I39,I42) -> 10516488.8
B6: Shelter and infrastructure established, improved and maintained | I6: =SUM(I7:I9) -> 3588525
C7: Emergency shelter provided | D7: (tent/materials/kit) | E7: =('Emergency Parameters'!F15/'Emergency Standards'!E3)*'Emergency Parameters'!F50 -> 5000 | F7: shelter | G7: ='Unit Costs'!F10 -> 697.705 | H7: 1 | I7: =E7*G7*H7 -> 3488525
C8: Emergency shelter provided | D8: (site preparation) | E8: ='Emergency Parameters'!F15/'Emergency Standards'!E7 -> 2 | F8: camp | G8: 50000 | H8: 1 | I8: =E8*G8*H8 -> 100000
C9: Unspecified output - Shelter and Infrastructure | D9: (other - define) | E9: 1 | F9: lumpsum | H9: 1 | I9: =E9*G9*H9 -> 0
B10: Population has sufficient basic and domestic items | I10: =SUM(I11:I12) -> 605272
C11: Household goods provided | E11: =('Emergency Parameters'!F15/'Emergency Standards'!E3)*'Emergency Parameters'!F52 -> 5000 | F11: family | G11: ='Unit Costs'!F25 -> 121.0544 | H11: 1 | I11: =E11*G11*H11 -> 605272
C12: Unspecified output - Basic and Domestic Items | E12: 1 | F12: lumpsum | H12: 1 | I12: =E12*G12*H12 -> 0
B13: Health status of the population improved | I13: =SUM(I14:I19) -> 686095
C14: Access to primary health care services provided or supported | E14: ='Emergency Parameters'!F15*'Emergency Parameters'!F54 -> 20000 | F14: person | G14: 5 | H14: ='Emergency Parameters'!F17 -> 6 | I14: =E14*G14*H14 -> 600000
C15: Access to primary health care services provided or supported | D15: (hospital tent) | E15: =IF('Emergency Parameters'!$F$54>0, 'Emergency Parameters'!$F$15/'Emergency Standards'!$E$32, "0") -> 1 | F15: centre | G15: 2145 | H15: 1 | I15: 2145
C16: Access to primary health care services provided or supported | D16: (ambulance) | E16: =IF('Emergency Parameters'!$F$54>0, 'Emergency Parameters'!$F$15/'Emergency Standards'!$E$32, "0") -> 1 | F16: ambulance | G16: 41600 | H16: 1 | I16: 41600
C17: Access to essential drugs provided | D17: (interagency reproductive health kit) | E17: =IF('Emergency Parameters'!$F$54>0, 'Emergency Parameters'!$F$15/'Emergency Standards'!$E$32, "0") -> 1 | F17: kit | G17: 7350 | H17: 1 | I17: 7350
C18: Access to essential drugs provided | D18: (interagency emergency and diarrea kits) | E18: =IF('Emergency Parameters'!$F$54>0, 'Emergency Parameters'!$F$15/'Emergency Standards'!$E$32, "0") -> 1 | F18: kit | G18: 35000 | H18: 1 | I18: 35000
C19: Unspecified output - Health | E19: 1 | F19: lumpsum | H19: 1 | I19: 0
B20: Population lives in satisfactory conditions of sanitation and hygiene | I20: =SUM(I21:I23) -> 1200000
C21: Community sanitary facilities/ latrines constructed | E21: =('Emergency Parameters'!F15/20)*'Emergency Parameters'!F56 -> 1000 | F21: latrine | G21: 300 | H21: 1 | I21: =E21*G21*H21 -> 300000
C22: Household sanitary facilities / latrines constructed | E22: ='Emergency Parameters'!F15/'Emergency Standards'!E3*'Emergency Parameters'!F56 -> 5000 | F22: latrine | G22: 180 | H22: 1 | I22: =E22*G22*H22 -> 900000
C23: Unspecified output - Sanitation and Hygiene | E23: 1 | F23: lumpsum | H23: 1 | I23: =E23*G23*H23 -> 0
B24: Population has optimal access to education | I24: =SUM(I25:I28) -> 624276.8
C25: Primary education provided | D25: (misc.) | E25: ='Emergency Parameters'!$F$15*'Emergency Parameters'!$F$58 -> 4000 | F25: students | G25: 25 | H25: ='Emergency Parameters'!F17 -> 6 | I25: =E25*G25*H25 -> 600000
C26: Primary education provided | D26: (School block - tent) | E26: =IF('Emergency Parameters'!F58>0, ('Emergency Parameters'!F15/'Emergency Standards'!E34), "0") -> 4 | F26: schools | G26: 1069.2 | H26: 1 | I26: =E26*G26*H26 -> 4276.8
C27: Primary education provided | D27: (Child-friendly spaces) | E27: ='Emergency Parameters'!$F$15*'Emergency Parameters'!$F$58 -> 4000 | F27: students | G27: 5 | H27: 1 | I27: =E27*G27*H27 -> 20000
C28: Unspecified output - Education | E28: 1 | F28: lumpsum | H28: 1 | I28: =E28*G28*H28 -> 0
B29: Supply of potable water increased or maintained | I29: =SUM(I30:I32) -> 2428000
C30: Water system constructed, expanded and/or upgraded | D30: (Boreholes) | E30: ='Emergency Parameters'!F15/'Emergency Standards'!E21*'Emergency Parameters'!F60 -> 100 | F30: borehole | G30: 7000 | H30: 1 | I30: =E30*G30*H30 -> 700000
C31: Water system constructed, expanded and/or upgraded | D31: (Trucking) | E31: ='Emergency Parameters'!F15*'Emergency Standards'!C20*'Emergency Parameters'!F60 -> 400000 | F31: litre | G31: 0.024 | H31: ='Emergency Parameters'!F17*30 -> 180 | I31: =E31*G31*H31 -> 1728000
C32: Unspecified output - Water | E32: 1 | F32: lumpsum | H32: 1 | I32: =E32*G32*H32 -> 0
B33: Services for persons with specific needs strengthened | I33: =SUM(I34:I35) -> 200000
C34: Support to persons with specific needs provided | E34: ='Emergency Parameters'!F15*'Emergency Parameters'!F62 -> 4000 | F34: person | G34: 50 | H34: 1 | I34: =E34*G34*H34 -> 200000
C35: Unspecified output - Servs for PoC w Specific Needs | E35: 1 | F35: lumpsum | H35: 1 | I35: =E35*G35*H35 -> 0
B36: Food security improved | I36: =SUM(I37:I38) -> 750000
C37: Adequate quantity and quality of food aid provided (<5,000 refugees) | E37: =IF('Emergency Parameters'!F64>0, (5000)/'Emergency Standards'!E3, "0") -> 1250 | F37: family | G37: 100 | H37: ='Emergency Parameters'!F17 -> 6 | I37: =E37*G37*H37 -> 750000
C38: Unspecified output - Food Security | E38: 1 | F38: lumpsum | H38: 1 | I38: =E38*G38*H38 -> 0
B39: Population has sufficient access to energy | I39: =SUM(I40:I41) -> 300000
C40: Domestic fuel provided | E40: =('Emergency Parameters'!F15/'Emergency Standards'!E3)*'Emergency Parameters'!F66 -> 5000 | F40: family | G40: 10 | H40: ='Emergency Parameters'!F17 -> 6 | I40: =E40*G40*H40 -> 300000
C41: Unspecified output - Energy | E41: 1 | F41: lumpsum | H41: 1 | I41: =E41*G41*H41 -> 0
B42: Nutritional well-being improved | I42: =SUM(I43:I46) -> 134320
C43: Complementary food supplements provided and monitored | D43: (feeding centre) | E43: =IF( 'Emergency Parameters'!F68>0, 'Emergency Parameters'!F15/'Emergency Standards'!E35, "0") -> 1 | F43: centre | G43: 10000 | H43: 1 | I43: =E43*G43*H43 -> 10000
C44: Complementary food supplements provided and monitored | D44: (Plumpynut) | E44: =('Emergency Parameters'!F15/50)*'Emergency Parameters'!F68 -> 80 | F44: box | G44: 54 | H44: 1 | I44: =E44*G44*H44 -> 4320
C45: Complementary food supplements provided and monitored (>5,000 refugees) | E45: ='Emergency Parameters'!F15*'Emergency Parameters'!F68 -> 4000 | F45: <5/month | G45: 5 | H45: ='Emergency Parameters'!F17 -> 6 | I45: =E45*G45*H45 -> 120000
C46: Unspecified output - Nutrition | E46: 1 | F46: lumpsum | H46: 1 | I46: =E46*G46*H46 -> 0
A47: Logistics and Operations Support | I47: =SUM(I48,I51) -> 1269892.83
B48: Logistics and supply optimized to serve operational needs | I48: =SUM(I49:I50) -> 293123.82
C49: Inventory/distribution optimized (6% of total procurement costs) | E49: 1 | F49: lumpsum | G49: =(I7+I11+I16+I37)*0.06 -> 293123.82 | H49: 1 | I49: =E49*G49*H49 -> 293123.82
C50: Unspecified output - Supply Chain/ Logistics | E50: 1 | F50: lumpsum | H50: 1 | I50: =E50*G50*H50 -> 0
B51: Operations management, coordination and support strengthened and optimized | I51: =SUM(I52:I53) -> 976769.0096
C52: General project management services provided (8% of total ops) | E52: 1 | F52: lumpsum | G52: =(SUM(I5,I54,I65,I72,I80,I48,I53))*0.08 -> 976769.0096 | H52: 1 | I52: =E52*G52*H52 -> 976769.0096
C53: Unspecified output - Operations Management | E53: 1 | F53: lumpsum | H53: 1 | I53: =E53*G53*H53 -> 0
A54: Security from Violence and Exploitation | I54: =SUM(I55,I58,I61) -> 730000
B55: Risk of SGBV is reduced and quality of response improved | I55: =SUM(I56:I57) -> 10000
C56: Assessment and analysis undertaken | E56: ='Emergency Parameters'!F15/'Emergency Standards'!E7*'Emergency Parameters'!F84 -> 2 | F56: camp | G56: 5000 | H56: 1 | I56: =E56*G56*H56 -> 10000
C57: Unspecified output - SGBV Prevention and Response | E57: 1 | F57: lumpsum | H57: 1 | I57: =E57*G57*H57 -> 0
B58: Protection from effects of armed conflict strengthened | I58: =SUM(I59:I60) -> 600000
C59: Protection by presence provided | E59: ='Emergency Parameters'!F15*'Emergency Parameters'!F88 -> 20000 | F59: person | G59: 5 | H59: ='Emergency Parameters'!F17 -> 6 | I59: =E59*G59*H59 -> 600000
C60: Unspecified output - Effects of Armed Conflict | E60: 1 | F60: lumpsum | H60: 1 | I60: =E60*G60*H60 -> 0
B61: Protection of children strengthened | I61: =SUM(I62:I64) -> 120000
C62: Prevention and response services for adolescents | E62: ='Emergency Parameters'!F15*'Emergency Parameters'!F86 -> 6000 | F62: children | G62: 10 | H62: 1 | I62: =E62*G62*H62 -> 60000
C63: Prevention and response services for children at risk | E63: ='Emergency Parameters'!F15*'Emergency Parameters'!F86 -> 6000 | F63: children | G63: 10 | H63: 1 | I63: =E63*G63*H63 -> 60000
C64: Unspecified output - Protection of Children | E64: 1 | F64: lumpsum | H64: 1 | I64: =E64*G64*H64 -> 0
A65: Fair Protection Processes and Documentation | I65: =SUM(I66,I69) -> 280000
B66: Reception conditions improved | I66: =SUM(I67:I68) -> 160000
C67: Reception/transit centre infrastructure established and maintained | E67: ='Emergency Parameters'!F15*'Emergency Parameters'!F72 -> 20000 | F67: person | G67: 8 | H67: 1 | I67: =E67*G67*H67 -> 160000
C68: Unspecified output - Reception Conditions | E68: 1 | F68: lumpsum | H68: 1 | I68: =E68*G68*H68 -> 0
B69: Level of individual documentation increased | I69: =SUM(I70:I71) -> 120000
C70: Issuance of ID & travel documents to persons of concern supported | E70: ='Emergency Parameters'!F15*'Emergency Parameters'!F74 -> 20000 | F70: person | G70: 6 | H70: 1 | I70: =E70*G70*H70 -> 120000
C71: Unspecified output - Individual Documentation | E71: 1 | F71: lumpsum | H71: 1 | I71: =E71*G71*H71 -> 0
A72: Leadership, Coordination and Partnerships | I72: =SUM(I73,I77) -> 30000
B73: Camp management and coordination refined and improved | I73: =SUM(I74:I76) -> 20000
C74: Site selection, site planning and site monitoring/implementation conducted against UNHCR and/or SPHERE standards | E74: ='Emergency Parameters'!F15/'Emergency Standards'!E7 -> 2 | F74: camp | G74: 5000 | H74: 1 | I74: =E74*G74*H74 -> 10000
C75: Roles and responsibilities for camp managers and service providers defined and agreed | E75: ='Emergency Parameters'!F15/'Emergency Standards'!E7 -> 2 | F75: camp | G75: 5000 | H75: 1 | I75: =E75*G75*H75 -> 10000
C76: Unspecified output - Camp Mgmt. & Coordination | E76: 1 | F76: lumpsum | H76: 1 | I76: =E76*G76*H76 -> 0
B77: Emergency management strengthened | I77: =SUM(I78:I79) -> 10000
C78: Advocacy conducted | E78: ='Emergency Parameters'!F15 -> 20000 | F78: person | G78: 0.5 | H78: 1 | I78: =E78*G78*H78 -> 10000
C79: Unspecified output - Emergency Management | E79: 1 | F79: lumpsum | H79: 1 | I79: =E79*G79*H79 -> 0
A80: Favourable Protection Environment | I80: =SUM(I81,I84) -> 360000
B81: Access to legal assistance and legal remedies improved | I81: =SUM(I82:I83) -> 240000
C82: Legal services and clinics established or provided | E82: ='Emergency Parameters'!F15*'Emergency Parameters'!F78 -> 20000 | F82: person | G82: 2 | H82: ='Emergency Parameters'!F17 -> 6 | I82: =E82*G82*H82 -> 240000
C83: Unspecified output - Legal Remedies & Assistance | E83: 1 | F83: lumpsum | H83: 1 | I83: =E83*G83*H83 -> 0
B84: Access to the territory improved and risk of refoulement reduced | I84: =SUM(I85:I86) -> 120000
C85: Systematic and independent border monitoring established or conducted | E85: ='Emergency Parameters'!F15*'Emergency Parameters'!F80 -> 20000 | F85: person | G85: 1 | H85: ='Emergency Parameters'!F17 -> 6 | I85: =E85*G85*H85 -> 120000
C86: Unspecified output - Access & Non Refoulement | E86: 1 | F86: lumpsum | H86: 1 | I86: =E86*G86*H86 -> 0
A87: Grand Total | I87: =SUM(I5,I47,I54,I65,I72,I80,) -> 13186381.63
A88: * Quantity, Unit Cost and Time are automatically calculated based on the inputs in the Emergency Parameters sheet. However, these, especially unit cost could be adjusted reflecting
A89: the local reality. In addition, unspecified output are only to be entered manually where applicable.

Sheet B.Staff
A1: Annex II.B: Staffing Costs (included in ABOD as temporary assistance, based on Emergency Parameters section III)
A2: Emergency in: | B2: ='Emergency Parameters'!E10 -> 0
E4: Country Code: | G4: ='Emergency Parameters'!E10 -> 0
A5: Function Type | B5: Grade | C5: Person | D5: Amount* | E5: Annual Salary* | F5: Month | G5: Amount**
A6: ='Emergency Parameters'!D99 -> 0 | B6: ='Emergency Parameters'!E99 -> 0 | C6: ='Emergency Parameters'!F99 -> 0 | D6: =INDEX(E$37:E$3037,SUMPRODUCT(MATCH(B6&$G$4,C$37:C$3037&B$37:B$3037,0))) ->  | E6: =IF(ISNA(D6),0,D6) -> 0 | F6: ='Emergency Parameters'!F$17 -> 6 | G6: =((C6*E6)/12)*F6 -> 0
A7: ='Emergency Parameters'!D100 -> 0 | B7: ='Emergency Parameters'!E100 -> 0 | C7: ='Emergency Parameters'!F100 -> 0 | D7: =INDEX(E$37:E$3037,SUMPRODUCT(MATCH(B7&$G$4,C$37:C$3037&B$37:B$3037,0))) ->  | E7: =IF(ISNA(D7),0,D7) -> 0 | F7: ='Emergency Parameters'!F$17 -> 6 | G7: =((C7*E7)/12)*F7 -> 0
A8: ='Emergency Parameters'!D101 -> 0 | B8: ='Emergency Parameters'!E101 -> 0 | C8: ='Emergency Parameters'!F101 -> 0 | E8: 0 | F8: ='Emergency Parameters'!F$17 -> 6 | G8: 0
A9: ='Emergency Parameters'!D102 -> 0 | B9: ='Emergency Parameters'!E102 -> 0 | C9: ='Emergency Parameters'!F102 -> 0 | E9: 0 | F9: ='Emergency Parameters'!F$17 -> 6 | G9: 0
A10: ='Emergency Parameters'!D103 -> 0 | B10: ='Emergency Parameters'!E103 -> 0 | C10: ='Emergency Parameters'!F103 -> 0 | E10: 0 | F10: ='Emergency Parameters'!F$17 -> 6 | G10: 0
A11: ='Emergency Parameters'!D104 -> 0 | B11: ='Emergency Parameters'!E104 -> 0 | C11: ='Emergency Parameters'!F104 -> 0 | E11: 0 | F11: ='Emergency Parameters'!F$17 -> 6 | G11: 0
A12: ='Emergency Parameters'!D105 -> 0 | B12: ='Emergency Parameters'!E105 -> 0 | C12: ='Emergency Parameters'!F105 -> 0 | E12: 0 | F12: ='Emergency Parameters'!F$17 -> 6 | G12: 0
A13: ='Emergency Parameters'!D106 -> 0 | B13: ='Emergency Parameters'!E106 -> 0 | C13: ='Emergency Parameters'!F106 -> 0 | E13: 0 | F13: ='Emergency Parameters'!F$17 -> 6 | G13: 0
A14: ='Emergency Parameters'!D107 -> 0 | B14: ='Emergency Parameters'!E107 -> 0 | C14: ='Emergency Parameters'!F107 -> 0 | E14: 0 | F14: ='Emergency Parameters'!F$17 -> 6 | G14: 0
A15: ='Emergency Parameters'!D108 -> 0 | B15: ='Emergency Parameters'!E108 -> 0 | C15: ='Emergency Parameters'!F108 -> 0 | E15: 0 | F15: ='Emergency Parameters'!F$17 -> 6 | G15: 0
A16: ='Emergency Parameters'!D109 -> 0 | B16: ='Emergency Parameters'!E109 -> 0 | C16: ='Emergency Parameters'!F109 -> 0 | E16: 0 | F16: ='Emergency Parameters'!F$17 -> 6 | G16: 0
A17: ='Emergency Parameters'!D110 -> 0 | B17: ='Emergency Parameters'!E110 -> 0 | C17: ='Emergency Parameters'!F110 -> 0 | E17: 0 | F17: ='Emergency Parameters'!F$17 -> 6 | G17: 0
A18: ='Emergency Parameters'!D111 -> 0 | B18: ='Emergency Parameters'!E111 -> 0 | C18: ='Emergency Parameters'!F111 -> 0 | E18: 0 | F18: ='Emergency Parameters'!F$17 -> 6 | G18: 0
A19: ='Emergency Parameters'!D112 -> 0 | B19: ='Emergency Parameters'!E112 -> 0 | C19: ='Emergency Parameters'!F112 -> 0 | E19: 0 | F19: ='Emergency Parameters'!F$17 -> 6 | G19: 0
A20: ='Emergency Parameters'!D113 -> 0 | B20: ='Emergency Parameters'!E113 -> 0 | C20: ='Emergency Parameters'!F113 -> 0 | E20: 0 | F20: ='Emergency Parameters'!F$17 -> 6 | G20: 0
A21: ='Emergency Parameters'!D114 -> 0 | B21: ='Emergency Parameters'!E114 -> 0 | C21: ='Emergency Parameters'!F114 -> 0 | E21: 0 | F21: ='Emergency Parameters'!F$17 -> 6 | G21: 0
A22: ='Emergency Parameters'!D115 -> 0 | B22: ='Emergency Parameters'!E115 -> 0 | C22: ='Emergency Parameters'!F115 -> 0 | E22: 0 | F22: ='Emergency Parameters'!F$17 -> 6 | G22: 0
A23: ='Emergency Parameters'!D116 -> 0 | B23: ='Emergency Parameters'!E116 -> 0 | C23: ='Emergency Parameters'!F116 -> 0 | E23: 0 | F23: ='Emergency Parameters'!F$17 -> 6 | G23: 0
A24: ='Emergency Parameters'!D117 -> 0 | B24: ='Emergency Parameters'!E117 -> 0 | C24: ='Emergency Parameters'!F117 -> 0 | E24: 0 | F24: ='Emergency Parameters'!F$17 -> 6 | G24: 0
A25: ='Emergency Parameters'!D118 -> 0 | B25: ='Emergency Parameters'!E118 -> 0 | C25: ='Emergency Parameters'!F118 -> 0 | E25: 0 | F25: ='Emergency Parameters'!F$17 -> 6 | G25: 0
A26: ='Emergency Parameters'!D119 -> 0 | B26: ='Emergency Parameters'!E119 -> 0 | C26: ='Emergency Parameters'!F119 -> 0 | E26: 0 | F26: ='Emergency Parameters'!F$17 -> 6 | G26: 0
A27: ='Emergency Parameters'!D120 -> 0 | B27: ='Emergency Parameters'!E120 -> 0 | C27: ='Emergency Parameters'!F120 -> 0 | E27: 0 | F27: ='Emergency Parameters'!F$17 -> 6 | G27: 0
A28: ='Emergency Parameters'!D121 -> 0 | B28: ='Emergency Parameters'!E121 -> 0 | C28: ='Emergency Parameters'!F121 -> 0 | E28: 0 | F28: ='Emergency Parameters'!F$17 -> 6 | G28: 0
A29: TOTAL | G29: =SUM(G6:G28) -> 0
A30: * Annual salary scale for 2020 for a respective country.
B35: Salary Scale: updated Feb 2015
B36: Country | C36: Grade | D36: USD | E36: Amount
B37: Afghanistan | C37: D1 | D37: USD | E37: 299906
B38: Afghanistan | C38: D2 | D38: USD | E38: 326847
B39: Afghanistan | C39: FS4 | D39: USD | E39: 140040
B40: Afghanistan | C40: FS5 | D40: USD | E40: 173598
B41: Afghanistan | C41: G1A | D41: USD | E41: 12233
B42: Afghanistan | C42: G1B | D42: USD | E42: 16023
B43: Afghanistan | C43: G2 | D43: USD | E43: 20992
B44: Afghanistan | C44: G3 | D44: USD | E44: 27047
B45: Afghanistan | C45: G4 | D45: USD | E45: 34920
B46: Afghanistan | C46: G5 | D46: USD | E46: 42581
B47: Afghanistan | C47: G6 | D47: USD | E47: 51091
B48: Afghanistan | C48: G7 | D48: USD | E48: 60291
B49: Afghanistan | C49: NA | D49: USD | E49: 72617
B50: Afghanistan | C50: NB | D50: USD | E50: 86567
B51: Afghanistan | C51: NC | D51: USD | E51: 103187
B52: Afghanistan | C52: ND | D52: USD | E52: 122999
B53: Afghanistan | C53: P1 | D53: USD | E53: 120237
B54: Afghanistan | C54: P2 | D54: USD | E54: 152399
B55: Afghanistan | C55: P3 | D55: USD | E55: 190157
B56: Afghanistan | C56: P4 | D56: USD | E56: 230112
B57: Afghanistan | C57: P5 | D57: USD | E57: 265976
B58: Albania | C58: D1 | D58: USD | E58: 189861
B59: Albania | C59: D2 | D59: USD | E59: 206917
B60: Albania | C60: FS4 | D60: USD | E60: 88655
B61: Albania | C61: FS5 | D61: USD | E61: 109900
B62: Albania | C62: G1 | D62: USD | E62: 16408
B63: Albania | C63: G2 | D63: USD | E63: 18073
B64: Albania | C64: G3 | D64: USD | E64: 19861
B65: Albania | C65: G4 | D65: USD | E65: 21832
B66: Albania | C66: G5 | D66: USD | E66: 24452
B67: Albania | C67: G6 | D67: USD | E67: 27648
B68: Albania | C68: G7 | D68: USD | E68: 31236
B69: Albania | C69: NA | D69: USD | E69: 39807
B70: Albania | C70: NB | D70: USD | E70: 47729
B71: Albania | C71: NC | D71: USD | E71: 60182
B72: Albania | C72: ND | D72: USD | E72: 75794
B73: Albania | C73: P1 | D73: USD | E73: 76118
B74: Albania | C74: P2 | D74: USD | E74: 96479
B75: Albania | C75: P3 | D75: USD | E75: 120383
B76: Albania | C76: P4 | D76: USD | E76: 145677
B77: Albania | C77: P5 | D77: USD | E77: 168381
B78: Algeria | C78: D1 | D78: USD | E78: 264761
B79: Algeria | C79: D2 | D79: USD | E79: 288545
B80: Algeria | C80: FS4 | D80: USD | E80: 123629
B81: Algeria | C81: FS5 | D81: USD | E81: 153255
B82: Algeria | C82: G2 | D82: USD | E82: 17968
B83: Algeria | C83: G3 | D83: USD | E83: 20663
B84: Algeria | C84: G4 | D84: USD | E84: 23762
B85: Algeria | C85: G5 | D85: USD | E85: 27327
B86: Algeria | C86: G6 | D86: USD | E86: 31426
B87: Algeria | C87: G7 | D87: USD | E87: 36454
B88: Algeria | C88: NA | D88: USD | E88: 46830
B89: Algeria | C89: NB | D89: USD | E89: 56195
B90: Algeria | C90: NC | D90: USD | E90: 67435
B91: Algeria | C91: ND | D91: USD | E91: 80922
B92: Algeria | C92: P1 | D92: USD | E92: 106146
B93: Algeria | C93: P2 | D93: USD | E93: 134539
B94: Algeria | C94: P3 | D94: USD | E94: 167873
B95: Algeria | C95: P4 | D95: USD | E95: 203146
B96: Algeria | C96: P5 | D96: USD | E96: 234807
B97: Angola | C97: D1 | D97: USD | E97: 322742
B98: Angola | C98: D2 | D98: USD | E98: 351735
B99: Angola | C99: FS4 | D99: USD | E99: 150704
B100: Angola | C100: FS5 | D100: USD | E100: 186817
B101: Angola | C101: G1 | D101: USD | E101: 32576
B102: Angola | C102: G2 | D102: USD | E102: 38442
B103: Angola | C103: G3 | D103: USD | E103: 45361
B104: Angola | C104: G4 | D104: USD | E104: 53532
B105: Angola | C105: G5 | D105: USD | E105: 63165
B106: Angola | C106: G6 | D106: USD | E106: 75163
B107: Angola | C107: G7 | D107: USD | E107: 90195
B108: Angola | C108: NA | D108: USD | E108: 109763
B109: Angola | C109: NB | D109: USD | E109: 136108
B110: Angola | C110: NC | D110: USD | E110: 171492
B111: Angola | C111: ND | D111: USD | E111: 216079
B112: Angola | C112: P1 | D112: USD | E112: 129392
B113: Angola | C113: P2 | D113: USD | E113: 164003
B114: Angola | C114: P3 | D114: USD | E114: 204636
B115: Angola | C115: P4 | D115: USD | E115: 247634
B116: Angola | C116: P5 | D116: USD | E116: 286228
B117: Argentina | C117: D1 | D117: USD | E117: 212336
B118: Argentina | C118: D2 | D118: USD | E118: 231411
B119: Argentina | C119: FS4 | D119: USD | E119: 99150
B120: Argentina | C120: FS5 | D120: USD | E120: 122909
B121: Argentina | C121: G1 | D121: USD | E121: 20355
B122: Argentina | C122: G2 | D122: USD | E122: 24023
B123: Argentina | C123: G3 | D123: USD | E123: 28345
B124: Argentina | C124: G4 | D124: USD | E124: 33448
B125: Argentina | C125: G5 | D125: USD | E125: 39803
B126: Argentina | C126: G6 | D126: USD | E126: 48957
B127: Argentina | C127: G7 | D127: USD | E127: 60219
B128: Argentina | C128: NA | D128: USD | E128: 66841
B129: Argentina | C129: NB | D129: USD | E129: 87563
B130: Argentina | C130: NC | D130: USD | E130: 117333
B131: Argentina | C131: ND | D131: USD | E131: 157226
B132: Argentina | C132: P1 | D132: USD | E132: 85129
B133: Argentina | C133: P2 | D133: USD | E133: 107900
B134: Argentina | C134: P3 | D134: USD | E134: 134633
B135: Argentina | C135: P4 | D135: USD | E135: 162922
B136: Argentina | C136: P5 | D136: USD | E136: 188313
B137: Armenia | C137: D1 | D137: USD | E137: 254278
B138: Armenia | C138: D2 | D138: USD | E138: 277120
B139: Armenia | C139: FS4 | D139: USD | E139: 118734
B140: Armenia | C140: FS5 | D140: USD | E140: 147187
B141: Armenia | C141: G1 | D141: USD | E141: 11393
B142: Armenia | C142: G2 | D142: USD | E142: 13574
B143: Armenia | C143: G3 | D143: USD | E143: 16146
B144: Armenia | C144: G4 | D144: USD | E144: 19218
B145: Armenia | C145: G5 | D145: USD | E145: 23241
B146: Armenia | C146: G6 | D146: USD | E146: 28130
B147: Armenia | C147: G7 | D147: USD | E147: 34044
B148: Armenia | C148: NA | D148: USD | E148: 45855
B149: Armenia | C149: NB | D149: USD | E149: 55917
B150: Armenia | C150: NC | D150: USD | E150: 67668
B151: Armenia | C151: ND | D151: USD | E151: 77143
B152: Armenia | C152: P1 | D152: USD | E152: 101944
B153: Armenia | C153: P2 | D153: USD | E153: 129213
B154: Armenia | C154: P3 | D154: USD | E154: 161226
B155: Armenia | C155: P4 | D155: USD | E155: 195103
B156: Armenia | C156: P5 | D156: USD | E156: 225510
B157: Australia | C157: D1 | D157: USD | E157: 231541
B158: Australia | C158: D2 | D158: USD | E158: 252340
B159: Australia | C159: FS4 | D159: USD | E159: 108117
B160: Australia | C160: FS5 | D160: USD | E160: 134025
B161: Australia | C161: G1 | D161: USD | E161: 48160
B162: Australia | C162: G2 | D162: USD | E162: 52974
B163: Australia | C163: G3 | D163: USD | E163: 58270
B164: Australia | C164: G4 | D164: USD | E164: 64104
B165: Australia | C165: G5 | D165: USD | E165: 71147
B166: Australia | C166: G6 | D166: USD | E166: 79689
B167: Australia | C167: G7 | D167: USD | E167: 89250
B168: Australia | C168: NA | D168: USD | E168: 112291
B169: Australia | C169: NB | D169: USD | E169: 128572
B170: Australia | C170: NC | D170: USD | E170: 149142
B171: Australia | C171: ND | D171: USD | E171: 173005
B172: Australia | C172: P1 | D172: USD | E172: 92828
B173: Australia | C173: P2 | D173: USD | E173: 117658
B174: Australia | C174: P3 | D174: USD | E174: 146809
B175: Australia | C175: P4 | D175: USD | E175: 177657
B176: Australia | C176: P5 | D176: USD | E176: 205345
B177: Austria | C177: D1 | D177: USD | E177: 265900
B178: Austria | C178: D2 | D178: USD | E178: 289787
B179: Austria | C179: FS4 | D179: USD | E179: 124161
B180: Austria | C180: FS5 | D180: USD | E180: 153914
B181: Austria | C181: G1 | D181: USD | E181: 54790
B182: Austria | C182: G2 | D182: USD | E182: 63392
B183: Austria | C183: G3 | D183: USD | E183: 73369
B184: Austria | C184: G4 | D184: USD | E184: 84893
B185: Austria | C185: G5 | D185: USD | E185: 98204
B186: Austria | C186: G6 | D186: USD | E186: 113613
B187: Austria | C187: G7 | D187: USD | E187: 131480
B188: Austria | C188: P1 | D188: USD | E188: 106603
B189: Austria | C189: P2 | D189: USD | E189: 135118
B190: Austria | C190: P3 | D190: USD | E190: 168595
B191: Austria | C191: P4 | D191: USD | E191: 204020
B192: Austria | C192: P5 | D192: USD | E192: 235817
B193: Azerbaijan | C193: D1 | D193: USD | E193: 289797
B194: Azerbaijan | C194: D2 | D194: USD | E194: 315830
B195: Azerbaijan | C195: FS4 | D195: USD | E195: 135320
B196: Azerbaijan | C196: FS5 | D196: USD | E196: 167746
B197: Azerbaijan | C197: G1 | D197: USD | E197: 23037
B198: Azerbaijan | C198: G2 | D198: USD | E198: 26499
B199: Azerbaijan | C199: G3 | D199: USD | E199: 30482
B200: Azerbaijan | C200: G4 | D200: USD | E200: 35051
B201: Azerbaijan | C201: G5 | D201: USD | E201: 41012
B202: Azerbaijan | C202: G6 | D202: USD | E202: 49217
B203: Azerbaijan | C203: G7 | D203: USD | E203: 59051
B204: Azerbaijan | C204: NA | D204: USD | E204: 73332
B205: Azerbaijan | C205: NB | D205: USD | E205: 88733
... 2473 more rows

Sheet C.ABOD
A1: Annex II.C: Administrative Budget - ABOD
A4: Emergency in: | C4: ='Emergency Parameters'!E10 -> 0
A6: Cost Center:
A7: Account | B7: Chapter of Expenditure | C7: Amount
A8: 620300 | B8: Temporary Assistance (calculated based on staffing)* | C8: =B.Staff!G29 -> 0
A9: 620500 | B9: Overtime | C9: 0
A10: 622000 | B10: Travel on Official Business | C10: 0
A11: 623000 | B11: Contractual Services | C11: 0
A12: 624000 | B12: General Operating Expenses | C12: 0
A13: 676100 | B13: Staff/Guest Accommodations | C13: 0
A14: 624100 | B14: Rental and Maintenance of Premises | C14: 0
A15: 624200 | B15: Utilities | C15: 0
A16: 624300 | B16: Rental of Equipment and Vehicles
A17: 624400 | B17: Communications | C17: 0
A18: 624500 | B18: Hospitality | C18: 0
A19: 624600 | B19: Maintenance of Furniture, Equip & Vehicles | C19: 0
A20: 624900 | B20: Miscellaneous Services | C20: 0
A21: 601000 | B21: Materials and Office Supplies | C21: 0
A22: 606000 | B22: Petrol, diesel and other lubricants | C22: 0
A23: 605000 | B23: Non-expendable Property | C23: 0
A24: 627000 | B24: Improvements to Premises | C24: 0
A25: 628000 | B25: Seminars - Other group activities | C25: 0
A26: 629000 | B26: Joint UN Activities | C26: 0
B27: TOTAL | C27: =SUM(C8:C26) -> 0
A28: * Based on Emergency Parameters section III for TA only

Sheet D.Appeal (DER)
A1: Annex II.D: Draft Appeal Budget (Based on Emergency Parameters)
A2: Emergency in: | B2: ='Emergency Parameters'!E10 -> 0
A4: Rights Group | B4: Objectives | C4: Operations | D4: ABOD (Apportioned) | E4: Staffing (over 6 months) (Apportioned) | F4: Amount (USD)
A5: Basic Needs and Essential Services | C5: =SUM(C6,C7,C8,C9,C10,C11,C12,C13,C14,C15) -> 10516488.8 | D5: ='2.Ops Staging for Appeal'!L5 -> 0 | E5: ='2.Ops Staging for Appeal'!N5 -> 0 | F5: =SUM(C5:D5) -> 10516488.8
B6: Shelter and infrastructure established, improved and maintained | C6: =A.Ops!I6 -> 3588525 | D6: ='2.Ops Staging for Appeal'!L6 -> 0 | E6: ='2.Ops Staging for Appeal'!N6 -> 0 | F6: 3588525
B7: Population has sufficient basic and domestic items | C7: =A.Ops!I10 -> 605272 | D7: ='2.Ops Staging for Appeal'!L10 -> 0 | E7: ='2.Ops Staging for Appeal'!N10 -> 0 | F7: 605272
B8: Health status of the population improved | C8: =A.Ops!I13 -> 686095 | D8: ='2.Ops Staging for Appeal'!L13 -> 0 | E8: ='2.Ops Staging for Appeal'!N13 -> 0 | F8: 686095
B9: Population lives in satisfactory conditions of sanitation and hygiene | C9: =A.Ops!I20 -> 1200000 | D9: ='2.Ops Staging for Appeal'!L20 -> 0 | E9: ='2.Ops Staging for Appeal'!N20 -> 0 | F9: 1200000
B10: Population has optimal access to education | C10: =A.Ops!I24 -> 624276.8 | D10: ='2.Ops Staging for Appeal'!L24 -> 0 | E10: ='2.Ops Staging for Appeal'!N24 -> 0 | F10: 624276.8
B11: Supply of potable water increased or maintained | C11: =A.Ops!I29 -> 2428000 | D11: ='2.Ops Staging for Appeal'!L29 -> 0 | E11: ='2.Ops Staging for Appeal'!N29 -> 0 | F11: 2428000
B12: Services for persons with specific needs strengthened | C12: =A.Ops!I33 -> 200000 | D12: ='2.Ops Staging for Appeal'!L33 -> 0 | E12: ='2.Ops Staging for Appeal'!N33 -> 0 | F12: 200000
B13: Food security improved | C13: =A.Ops!I36 -> 750000 | D13: ='2.Ops Staging for Appeal'!L36 -> 0 | E13: ='2.Ops Staging for Appeal'!N36 -> 0 | F13: 750000
B14: Population has sufficient access to energy | C14: =A.Ops!I39 -> 300000 | D14: ='2.Ops Staging for Appeal'!L39 -> 0 | E14: ='2.Ops Staging for Appeal'!N39 -> 0 | F14: 300000
B15: Nutritional well-being improved | C15: =A.Ops!I42 -> 134320 | D15: ='2.Ops Staging for Appeal'!L42 -> 0 | E15: ='2.Ops Staging for Appeal'!N42 -> 0 | F15: 134320
A16: Logistics and Operations Support | C16: =SUM(C17,C18) -> 1269892.83 | D16: ='2.Ops Staging for Appeal'!L47 -> 0 | E16: ='2.Ops Staging for Appeal'!N47 -> 0 | F16: 1269892.83
B17: Logistics and supply optimized to serve operational needs | C17: =A.Ops!I48 -> 293123.82 | D17: ='2.Ops Staging for Appeal'!L48 -> 0 | E17: ='2.Ops Staging for Appeal'!N48 -> 0 | F17: 293123.82
B18: Operations management, coordination and support strengthened and optimized | C18: =A.Ops!I51 -> 976769.0096 | D18: ='2.Ops Staging for Appeal'!L51 -> 0 | E18: ='2.Ops Staging for Appeal'!N51 -> 0 | F18: 976769.0096
A19: Security from Violence and Exploitation | C19: =SUM(C20,C21,C22) -> 730000 | D19: ='2.Ops Staging for Appeal'!L54 -> 0 | E19: ='2.Ops Staging for Appeal'!N54 -> 0 | F19: 730000
B20: Risk of SGBV is reduced and quality of response improved | C20: =A.Ops!I55 -> 10000 | D20: ='2.Ops Staging for Appeal'!L55 -> 0 | E20: ='2.Ops Staging for Appeal'!N55 -> 0 | F20: 10000
B21: Protection from effects of armed conflict strengthened | C21: =A.Ops!I58 -> 600000 | D21: ='2.Ops Staging for Appeal'!L58 -> 0 | E21: ='2.Ops Staging for Appeal'!N58 -> 0 | F21: 600000
B22: Protection of children strengthened | C22: =A.Ops!I61 -> 120000 | D22: ='2.Ops Staging for Appeal'!L61 -> 0 | E22: ='2.Ops Staging for Appeal'!N61 -> 0 | F22: 120000
A23: Fair Protection Processes and Documentation | C23: =SUM(C24,C25) -> 280000 | D23: ='2.Ops Staging for Appeal'!L65 -> 0 | E23: ='2.Ops Staging for Appeal'!N65 -> 0 | F23: 280000
B24: Reception conditions improved | C24: =A.Ops!I66 -> 160000 | D24: ='2.Ops Staging for Appeal'!L66 -> 0 | E24: ='2.Ops Staging for Appeal'!N66 -> 0 | F24: 160000
B25: Level of individual documentation increased | C25: =A.Ops!I69 -> 120000 | D25: ='2.Ops Staging for Appeal'!L69 -> 0 | E25: ='2.Ops Staging for Appeal'!N69 -> 0 | F25: 120000
A26: Leadership, Coordination and Partnerships | C26: =SUM(C27,C28) -> 30000 | D26: ='2.Ops Staging for Appeal'!L72 -> 0 | E26: ='2.Ops Staging for Appeal'!N72 -> 0 | F26: 30000
B27: Camp management and coordination refined and improved | C27: =A.Ops!I73 -> 20000 | D27: ='2.Ops Staging for Appeal'!L73 -> 0 | E27: ='2.Ops Staging for Appeal'!N73 -> 0 | F27: 20000
B28: Emergency management strengthened | C28: =A.Ops!I77 -> 10000 | D28: ='2.Ops Staging for Appeal'!L77 -> 0 | E28: ='2.Ops Staging for Appeal'!N77 -> 0 | F28: 10000
A29: Favourable Protection Environment | C29: =SUM(C30,C31) -> 360000 | D29: ='2.Ops Staging for Appeal'!L80 -> 0 | E29: ='2.Ops Staging for Appeal'!N80 -> 0 | F29: 360000
B30: Access to legal assistance and legal remedies improved | C30: =A.Ops!I81 -> 240000 | D30: ='2.Ops Staging for Appeal'!L81 -> 0 | E30: ='2.Ops Staging for Appeal'!N81 -> 0 | F30: 240000
B31: Access to the territory improved and risk of refoulement reduced | C31: =A.Ops!I84 -> 120000 | D31: ='2.Ops Staging for Appeal'!L84 -> 0 | E31: ='2.Ops Staging for Appeal'!N84 -> 0 | F31: 120000
A32: Grand Total | C32: =SUM(C5,C16,C19,C23,C26,C29,) -> 13186381.63 | D32: ='C.ABOD'!C27 -> 0 | E32: ='C.ABOD'!E27 -> 0 | F32: 13186381.63

Sheet E. Positions (optional)
A1: Annex II.E: Position Requirements beyond 6 months - Budget Changes
A2: Emergency in: | B2: ='Emergency Parameters'!E10 -> 0
A4: MSRP Cost Centre | B4: MSRP Position No. | C4: Chartfield Codes (to be completed by ARBAS) | D4: Post Title | E4: Supervisor Position No. | F4: Grade | G4: Reason Code (see table below) | H4: Effective Dates/Comments | I4: Estimated costs (US dollars)
I5: 2015
I6: increase | J6: (decrease)
A7: CC…. | B7: NEW | C7: N/A | D7: Field Coordinator | E7: 10003458 | F7: P4 | G7: NEW | H7: 01/05/2020 - 31/12/2020 | I7: (annual cost/12*8)
H20: Total: | I20: =SUM(I7:I19) -> 0 | J20: =SUM(J7:J19) -> 0
I21: Net Change: | J21: =I20+J20 -> 0
A23: Requested by: | G23: Date:
B24: Director/Represnative
B26: Reason Code
B27: NEW | C27: New position (Standard) | F27: INA | G27: Position proposed for discontinuation
B28: NSS | C28: New position (Standard Specific) | F28: JRD | G28: Reclassification Downgrade
B29: NJP | C29: New position (JPO) | F29: JRU | G29: Reclassification Upgrade
B30: NEX | C30: New position (Expert) | F30: MOV | G30: Move from one office to another office, within the same cost centre
B31: TTL | C31: Title change | F31: XFR | G31: Transfer from one cost centre to another cost centre within the same operation.
B32: UPD | C32: No Change to position data

Sheet Summary
A1: Resource Requirements Summary
A2: Emergency in: | B2: ='Emergency Parameters'!E10 -> 0
A4: Budget Component | B4: Amount (USD)
A5: Operations | B5: =A.Ops!I87 -> 13186381.63
A6: ABOD | B6: ='C.ABOD'!C27 -> 0
A7: Staffing (beyond 6 months) | B7: ='E. Positions (optional)'!J21 -> 0
A8: TOTAL | B8: =SUM(B5:B7) -> 13186381.63

Sheet Emergency Standards
A1: Modular (Site) Planning
A2: Module | C2: Consisting of | E2: Approximately
A3: 1 | B3: family** | C3: 1 | D3: family | E3: 4 | F3: persons
A4: 1 | B4: community | C4: 16 | D4: families | E4: 80 | F4: persons
A5: 1 | B5: block | C5: 16 | D5: communities | E5: 1250 | F5: persons
A6: 1 | B6: sector | C6: 4 | D6: blocks | E6: 5000 | F6: persons
A7: 1 | B7: camp module*** | C7: 2 | D7: sectors | E7: 10000 | F7: persons
A8: * Emergency Handbook, 3rd edition, page 216.
A9: ** Average family size has been modified from 5 to 3.
A10: ** Camp module consists of 4 sectors of 20,000 -> reduced to 2 sectors of 10,000 (by DESS template)
A13: Site Planning Figures
B14: Resource | C14: Need
B15: Land | C15: 45 | D15: m2 per pax
B16: Shelter space | C16: 3.5 | D16: m2 per pax
B17: Roads and walkways | C17: 25 | D17: % | E17: of entire site
B18: Open space and public facilities | C18: 20 | D18: % | E18: of entire site
B19: Environmental sanitation | C19: 1 | D19: latrine | E19: 20 | F19: person
B20: Water | C20: 20 | D20: litre | E20: 1 | F20: person/day
B21: Tap stands | C21: 1 | D21: tap | E21: 200 | F21: person
B22: Warehouse space | C22: 1.2 | D22: m2 | E22: 1 | F22: ton
B23: Food | C23: 2100 | D23: kcal | E23: 1 | F23: person/day
C24: 36 | D24: ton | E24: 10000 | F24: person/week
B25: * Emergency Handbook, 3rd edition, page 549.
A28: Typical Services and Infrastructure Requirements for Refugee Camps*
A29: Infrastructure/ Services | C29: Per | E29: Equivalent
A30: 1 | B30: latrine | C30: 1 | D30: family | E30: 5 | F30: persons
A31: 1 | B31: water tap | C31: 1 | D31: community | E31: 80 | F31: persons
A32: 1 | B32: health centre | C32: 1 | D32: camp | E32: 20000 | F32: persons
A33: 1 | B33: hospital | C33: 200000 | D33: persons | E33: 200000 | F33: persons
A34: 1 | B34: school | C34: 1 | D34: sector | E34: 5000 | F34: persons
A35: 4 | B35: commodity distribution sites | C35: 1 | D35: camp module | E35: 20000 | F35: persons
A36: 1 | B36: market | C36: 1 | D36: camp module | E36: 20000 | F36: persons
A37: 2 | B37: refuse drums | C37: 1 | D37: community | E37: 80 | F37: persons
A38: * Emergency Handbook, 3rd edition, page 553.

Sheet Unit Costs
A1: Tables and information on this sheet are extracted and adapted from the Modular Budget templated prepared by DESS.
A3: Unit Costings
A4: Shelter
A5: Details | B5: Amounts per person | C5: Unit Cost | D5: Qty | E5: Time | F5: Package Cost
A6: Family Tent | B6: 1/family | C6: 419.83 | D6: 1 | F6: =C6*D6 -> 419.83
A7: Tent ridge double fold (4x4m) | B7: 1/family | C7: 257.4 | D7: 1 | F7: =C7*D7 -> 257.4
A8: Plastic sheeting | B8: 1/family | C8: 16.38 | D8: 1 | F8: =C8*D8 -> 16.38
A9: Plastic rolls (1/200 persons) | B9: 1/family | C9: 4.095 | D9: 1 | F9: =C9*D9 -> 4.095
A10: Emergency shelter provided (tent/materials/kit) | F10: =SUM(F6:F9) -> 697.705
A13: NFI
A14: Details | B14: Amounts per person | C14: Unit Cost | D14: Qty | E14: Time | F14: Package Cost
A15: Blankets | B15: 1/person | C15: 5.952 | D15: ='Emergency Standards'!E3 -> 4 | F15: =C15*D15 -> 23.808
A16: Cooking stove | B16: 1/family | C16: 10 | D16: 1 | F16: 10
A17: Heating stove | B17: 1/family | C17: 20 | D17: 1 | F17: 20
A18: Plastic bucket (10L) | B18: 2/family | C18: 2.52 | D18: 2 | F18: 5.04
A19: Jerry cans - Water (10L) | B19: 2/family | C19: 1.86 | D19: 2 | F19: 3.72
A20: Kitchen sets | B20: 1/family | C20: 16.2 | D20: 1 | F20: 16.2
A21: Kerosene lamps | B21: 1/family | C21: 5 | D21: 1 | F21: 5
A22: Sleeping mats | B22: 2/family | C22: 1.848 | D22: 2 | F22: 3.696
A23: Mosquito nets | B23: 2/family | C23: 4.7952 | D23: 2 | F23: 9.5904
A24: Soap | B24: 0.25kg/person/month | C24: 1 | D24: ='Emergency Standards'!E3 -> 4 | E24: ='Emergency Parameters'!F17 -> 6 | F24: =C24*D24*E24 -> 24
A25: Household goods provided | F25: =SUM(F15:F24) -> 121.0544
A28: Other Useful References
A29: Equipment and Non-expandable Properties
A30: Assets | B30: Unit Price* | C30: Qty | D30: Amount
A31: Vehicle Landcruiser type 4x4 | B31: 24000 | D31: =$B31*C31 -> 0
A32: Desktop | B32: 1500 | D32: =$B32*C32 -> 0
A33: Laptop | B33: 2500 | D33: 0
A34: Photocopier | B34: 8000 | D34: 0
A35: Printer | B35: 1250 | D35: 0
A36: Airconditioner/Heater | B36: 1500 | D36: 0
A37: UPS | B37: 500 | D37: 0
A38: Generator (120 Kva) | B38: 8000 | D38: 0
A39: GPS | B39: 280 | D39: 0
A40: Security Kit | B40: 6630 | D40: 0
A41: Office Kit | B41: 1500 | D41: 0
A42: Field Kit | B42: 1680 | D42: 0
A43: Personnel Kit | B43: 313 | D43: 0
A44: Mini-M | B44: 2200 | D44: 0
A45: Thuraya Base | B45: 1176 | D45: 0
A46: Thuraya | B46: 811 | D46: 0
A47: VHF Repeater and Access | B47: 5000 | D47: 0
A48: VHF Handset | B48: 385 | D48: 0
A49: VHF Base | B49: 800 | D49: 0
A50: Mobile VHF | B50: 385 | D50: 0
A51: HF Base Voice | B51: 3575 | D51: 0
A52: HF Base Data | B52: 6250 | D52: 0
A53: Mobile HF | B53: 3315 | D53: 0
A54: Solar Panel (Kit) | B54: 1900 | D54: 0
A55: Battery Charger (vehicle) | B55: 250 | D55: 0
A56: Mobile Phone | B56: 300 | D56: 0
A57: Fax Machine | B57: 900 | D57: 0
A58: M-4 | B58: 7000 | D58: 0
A59: Scanner | B59: 300 | D59: 0
A60: It Accessories (Lumpsum) | B60: 10000 | D60: 0
A61: Total | D61: =SUM(D31:D60) -> 0
A62: * Not updated. Reference only.
A66: Typical Posts in Emergency and Related Costs (without Salary)
A67: Title | B67: Function | C67: Grade | D67: Person | E67: Month | F67: DSA | G67: Total DSA | H67: Int'l Travels | I67: Amount
A68: Team Leader | B68: Administration | C68: P4 | D68: 1 | E68: ='Emergency Parameters'!F$17 -> 6 | F68: 3500 | G68: =D68*E68*F68 -> 21000 | H68: 5000 | I68: =G68+H68 -> 26000
A69: Admin/Finance Officer | B69: Administration | C69: P3 | D69: 1 | E69: ='Emergency Parameters'!F$17 -> 6 | F69: 3500 | G69: =D69*E69*F69 -> 21000 | H69: 5000 | I69: =G69+H69 -> 26000
A70: Protection Officer | B70: Protection | C70: P3 | D70: 1 | E70: ='Emergency Parameters'!F$17 -> 6 | F70: 3500 | G70: 21000 | H70: 5000 | I70: 26000
A71: Registration Officer | B71: Protection | C71: P3 | D71: 1 | E71: ='Emergency Parameters'!F$17 -> 6 | F71: 3500 | G71: 21000 | H71: 5000 | I71: 26000
A72: Reporting Officer | B72: External Relations | C72: P3 | D72: 1 | E72: ='Emergency Parameters'!F$17 -> 6 | F72: 3500 | G72: 21000 | H72: 5000 | I72: 26000
A73: Supply/Logistics Officer | B73: Supply | C73: P3 | D73: 1 | E73: ='Emergency Parameters'!F$17 -> 6 | F73: 3500 | G73: 21000 | H73: 5000 | I73: 26000
A74: IT/Telecomms Officer | B74: Information Technology | C74: P3 | D74: 1 | E74: ='Emergency Parameters'!F$17 -> 6 | F74: 3500 | G74: 21000 | H74: 5000 | I74: 26000
A75: Shelter and Site Planner | B75: IPR Clearance Not Required | C75: Consultant | D75: 1 | E75: ='Emergency Parameters'!F$17 -> 6 | F75: 3500 | G75: 21000 | H75: 5000 | I75: 26000
A76: WATSAN Expert (On mission for couple weeks) | D76: 1 | E76: 1 | F76: 3500 | G76: 3500 | H76: 5000 | I76: 8500
A77: Health and Nutrition Expert) (On Mission for couple weeks) | D77: 1 | E77: 1 | F77: 3500 | G77: 3500 | H77: 5000 | I77: 8500
A78: Programme Officer | B78: Programme | C78: P3 | D78: 1 | E78: ='Emergency Parameters'!F$17 -> 6 | F78: 3500 | G78: 21000 | H78: 5000 | I78: 26000
A79: PI/External Relations Officer | B79: Public Information | C79: P3 | D79: 1 | E79: ='Emergency Parameters'!F$17 -> 6 | F79: 3500 | G79: 21000 | H79: 5000 | I79: 26000
A80: FSA/Security Associate | B80: Safety | C80: G6 | D80: 1 | E80: ='Emergency Parameters'!F$17 -> 6 | F80: 3500 | G80: 21000 | I80: 21000
A81: Admin/Finance Associate | B81: Administration | C81: G6 | D81: 1 | E81: ='Emergency Parameters'!F$17 -> 6 | F81: 3500 | G81: =D81*E81*F81 -> 21000 | I81: 21000
A82: Community Serices Associate | B82: Community Services | C82: G6 | D82: 1 | E82: ='Emergency Parameters'!F$17 -> 6 | F82: 3500 | G82: 21000 | I82: 21000
A83: Protection/Field Associate | B83: Protection | C83: G6 | D83: 1 | E83: ='Emergency Parameters'!F$17 -> 6 | F83: 3500 | G83: 21000 | I83: 21000
A84: Technician/Electrician | B84: Administration | C84: G6 | D84: 1 | E84: ='Emergency Parameters'!F$17 -> 6 | F84: 3500 | G84: 21000 | I84: 21000
A85: Data Entry Assistant | B85: Information Technology | C85: G4 | D85: 1 | E85: ='Emergency Parameters'!F$17 -> 6 | F85: 3500 | G85: 21000 | I85: 21000
A86: Drivers | B86: Administration | C86: G2 | D86: 1 | E86: ='Emergency Parameters'!F$17 -> 6 | F86: 3500 | G86: 21000 | I86: 21000
G87: =SUM(G68:G86) -> 364000 | H87: =SUM(H68:H86) -> 60000 | I87: =SUM(I68:I86) -> 424000

Sheet 2.Ops Staging for Appeal (hidden)
A1: Annex 2.A: Operations Budget
A2: Emergency in: | C2: ='Emergency Parameters'!E10 -> 0
A4: Rights Group | B4: Objectives | C4: Outputs / Budget Lines | E4: Qty (Target) | F4: Unit | G4: Unit Cost | H4: Time | I4: Amount (USD) | J4: Output Total | L4: ABOD Apportioned | N4: Staff Costs (non-TA) Apportioned
A5: Basic Needs and Essential Services | I5: =A.Ops!I5 -> 10516488.8 | L5: =SUM(L6,L10,L13,L20,L24,L29,L33,L36,L39,L42) -> 0 | N5: =SUM(N6,N10,N13,N20,N24,N29,N33,N36,N39,N42) -> 0
B6: Shelter and infrastructure established, improved and maintained | E6: =A.Ops!E6 -> 0 | G6: =A.Ops!G6 -> 0 | H6: =A.Ops!H6 -> 0 | I6: =A.Ops!I6 -> 3588525 | L6: =SUM(L7:L9) -> 0 | N6: =SUM(N7:N9) -> 0
C7: Emergency shelter provided | D7: tent/materials/kit | E7: =A.Ops!E7 -> 5000 | F7: shelter | G7: =A.Ops!G7 -> 697.705 | H7: =A.Ops!H7 -> 1 | I7: =A.Ops!I7 -> 3488525
C8: Emergency shelter provided | D8: site preparation | E8: =A.Ops!E8 -> 2 | F8: camp | G8: =A.Ops!G8 -> 50000 | H8: =A.Ops!H8 -> 1 | I8: =A.Ops!I8 -> 100000 | J8: =SUM(I7:I8) -> 3588525 | K8: =IF(J8>0, 1, "") -> 1 | L8: =IF(K8=1, ($L$87/$K$87), 0) -> 0 | M8: =IF(L8>0, 1, "") ->  | N8: =IF(K8=1, ($N$87/$M$87), 0) -> 0
C9: Unspecified output - Shelter and Infrastructure | D9: other - define | E9: =A.Ops!E9 -> 1 | F9: lumpsum | G9: =A.Ops!G9 -> 0 | H9: =A.Ops!H9 -> 1 | I9: =A.Ops!I9 -> 0 | J9: =SUM(I9) -> 0 | K9: =IF(J9>0, 1, "") ->  | L9: =IF(K9=1, ($L$87/$K$87), 0) -> 0 | M9: =IF(L9>0, 1, "") ->  | N9: =IF(K9=1, ($N$87/$M$87), 0) -> 0
B10: Population has sufficient basic and domestic items | E10: =A.Ops!E10 -> 0 | G10: =A.Ops!G10 -> 0 | H10: =A.Ops!H10 -> 0 | I10: =A.Ops!I10 -> 605272 | L10: =SUM(L11:L12) -> 0 | N10: =SUM(N11:N12) -> 0
C11: Household goods provided | E11: =A.Ops!E11 -> 5000 | F11: family | G11: =A.Ops!G11 -> 121.0544 | H11: =A.Ops!H11 -> 1 | I11: =A.Ops!I11 -> 605272 | J11: =I11 -> 605272 | K11: 1 | L11: =IF(K11=1, ($L$87/$K$87), 0) -> 0 | N11: =IF(K11=1, ($N$87/$M$87), 0) -> 0
C12: Unspecified output - Basic and Domestic Items | E12: =A.Ops!E12 -> 1 | F12: lumpsum | G12: =A.Ops!G12 -> 0 | H12: =A.Ops!H12 -> 1 | I12: =A.Ops!I12 -> 0 | J12: =I12 -> 0 | L12: 0 | N12: =IF(K12=1, ($N$87/$M$87), 0) -> 0
B13: Health status of the population improved | E13: =A.Ops!E13 -> 0 | G13: =A.Ops!G13 -> 0 | H13: =A.Ops!H13 -> 0 | I13: =A.Ops!I13 -> 686095 | L13: =SUM(L14:L19) -> 0 | N13: =SUM(N14:N19) -> 0
C14: Access to primary health care services provided or supported | E14: =A.Ops!E14 -> 20000 | F14: person | G14: =A.Ops!G14 -> 5 | H14: =A.Ops!H14 -> 6 | I14: =A.Ops!I14 -> 600000 | J14: =SUM(I14:I16) -> 643745 | K14: 1 | L14: 0 | N14: =IF(K14=1, ($N$87/$M$87), 0) -> 0
C15: Access to primary health care services provided or supported | D15: (hospital tent) | E15: =A.Ops!E15 -> 1 | F15: centre | G15: =A.Ops!G15 -> 2145 | H15: =A.Ops!H15 -> 1 | I15: =A.Ops!I15 -> 2145 | L15: 0 | N15: 0
C16: Access to primary health care services provided or supported | D16: (ambulance) | E16: =A.Ops!E16 -> 1 | F16: ambulance | G16: =A.Ops!G16 -> 41600 | H16: =A.Ops!H16 -> 1 | I16: =A.Ops!I16 -> 41600 | L16: 0 | N16: 0
C17: Access to essential drugs provided | D17: (interagency reproductive health kit) | E17: =A.Ops!E17 -> 1 | F17: kit | G17: =A.Ops!G17 -> 7350 | H17: =A.Ops!H17 -> 1 | I17: =A.Ops!I17 -> 7350 | J17: =SUM(I17:I18) -> 42350 | K17: 1 | L17: 0 | N17: 0
C18: Access to essential drugs provided | D18: (interagency emergency and diarrea kits) | E18: =A.Ops!E18 -> 1 | F18: kit | G18: =A.Ops!G18 -> 35000 | H18: =A.Ops!H18 -> 1 | I18: =A.Ops!I18 -> 35000 | L18: 0 | N18: 0
C19: Unspecified output - Health | E19: =A.Ops!E19 -> 1 | F19: lumpsum | G19: =A.Ops!G19 -> 0 | H19: =A.Ops!H19 -> 1 | I19: =A.Ops!I19 -> 0 | J19: =I19 -> 0 | L19: 0 | N19: 0
B20: Population lives in satisfactory conditions of sanitation and hygiene | E20: =A.Ops!E20 -> 0 | G20: =A.Ops!G20 -> 0 | H20: =A.Ops!H20 -> 0 | I20: =A.Ops!I20 -> 1200000 | L20: =SUM(L21:L23) -> 0 | N20: =SUM(N21:N23) -> 0
C21: Community sanitary facilities/ latrines constructed | E21: =A.Ops!E21 -> 1000 | F21: latrine | G21: =A.Ops!G21 -> 300 | H21: =A.Ops!H21 -> 1 | I21: =A.Ops!I21 -> 300000 | J21: =I21 -> 300000 | K21: 1 | L21: 0 | N21: =IF(K21=1, ($N$87/$M$87), 0) -> 0
C22: Household sanitary facilities / latrines constructed | E22: =A.Ops!E22 -> 5000 | F22: latrine | G22: =A.Ops!G22 -> 180 | H22: =A.Ops!H22 -> 1 | I22: =A.Ops!I22 -> 900000 | J22: =I22 -> 900000 | K22: 1 | L22: 0 | N22: =IF(K22=1, ($N$87/$M$87), 0) -> 0
C23: Unspecified output - Sanitation and Hygiene | E23: =A.Ops!E23 -> 1 | F23: lumpsum | G23: =A.Ops!G23 -> 0 | H23: =A.Ops!H23 -> 1 | I23: =A.Ops!I23 -> 0 | J23: =I23 -> 0 | L23: 0 | N23: =IF(K23=1, ($N$87/$M$87), 0) -> 0
B24: Population has optimal access to education | E24: =A.Ops!E24 -> 0 | G24: =A.Ops!G24 -> 0 | H24: =A.Ops!H24 -> 0 | I24: =A.Ops!I24 -> 624276.8 | L24: =SUM(L25:L28) -> 0 | N24: =SUM(N25:N28) -> 0
C25: Primary education provided | D25: (misc.) | E25: =A.Ops!E25 -> 4000 | F25: students | G25: =A.Ops!G25 -> 25 | H25: =A.Ops!H25 -> 6 | I25: =A.Ops!I25 -> 600000 | J25: =SUM(I25:I27) -> 624276.8 | K25: 1 | L25: 0 | N25: =IF(K25=1, ($N$87/$M$87), 0) -> 0
C26: Primary education provided | D26: (School block - tent) | E26: =A.Ops!E26 -> 4 | F26: schools | G26: =A.Ops!G26 -> 1069.2 | H26: =A.Ops!H26 -> 1 | I26: =A.Ops!I26 -> 4276.8 | L26: 0 | N26: =IF(K26=1, ($N$87/$M$87), 0) -> 0
C27: Primary education provided | D27: (Child-friendly spaces) | E27: =A.Ops!E27 -> 4000 | F27: students | G27: =A.Ops!G27 -> 5 | H27: =A.Ops!H27 -> 1 | I27: =A.Ops!I27 -> 20000 | L27: 0 | N27: =IF(K27=1, ($N$87/$M$87), 0) -> 0
C28: Unspecified output - Education | E28: =A.Ops!E28 -> 1 | F28: lumpsum | G28: =A.Ops!G28 -> 0 | H28: =A.Ops!H28 -> 1 | I28: =A.Ops!I28 -> 0 | J28: =I28 -> 0 | L28: 0 | N28: =IF(K28=1, ($N$87/$M$87), 0) -> 0
B29: Supply of potable water increased or maintained | E29: =A.Ops!E29 -> 0 | G29: =A.Ops!G29 -> 0 | H29: =A.Ops!H29 -> 0 | I29: =A.Ops!I29 -> 2428000 | L29: =SUM(L30:L32) -> 0 | N29: =SUM(N30:N32) -> 0
C30: Water system constructed, expanded and/or upgraded | D30: (Boreholes) | E30: =A.Ops!E30 -> 100 | F30: borehole | G30: =A.Ops!G30 -> 7000 | H30: =A.Ops!H30 -> 1 | I30: =A.Ops!I30 -> 700000 | J30: =SUM(I30:I31) -> 2428000 | K30: 1 | L30: 0 | N30: =IF(K30=1, ($N$87/$M$87), 0) -> 0
C31: Water system constructed, expanded and/or upgraded | D31: (Trucking) | E31: =A.Ops!E31 -> 400000 | F31: litre | G31: =A.Ops!G31 -> 0.024 | H31: =A.Ops!H31 -> 180 | I31: =A.Ops!I31 -> 1728000 | L31: 0 | N31: =IF(K31=1, ($N$87/$M$87), 0) -> 0
C32: Unspecified output - Water | E32: =A.Ops!E32 -> 1 | F32: lumpsum | G32: =A.Ops!G32 -> 0 | H32: =A.Ops!H32 -> 1 | I32: =A.Ops!I32 -> 0 | J32: =I32 -> 0 | L32: 0 | N32: =IF(K32=1, ($N$87/$M$87), 0) -> 0
B33: Services for persons with specific needs strengthened | E33: =A.Ops!E33 -> 0 | G33: =A.Ops!G33 -> 0 | H33: =A.Ops!H33 -> 0 | I33: =A.Ops!I33 -> 200000 | L33: =SUM(L34:L35) -> 0 | N33: =SUM(N34:N35) -> 0
C34: Support to persons with specific needs provided | E34: =A.Ops!E34 -> 4000 | F34: person | G34: =A.Ops!G34 -> 50 | H34: =A.Ops!H34 -> 1 | I34: =A.Ops!I34 -> 200000 | J34: =I34 -> 200000 | K34: 1 | L34: 0 | N34: =IF(K34=1, ($N$87/$M$87), 0) -> 0
C35: Unspecified output - Servs for PoC w Specific Needs | E35: =A.Ops!E35 -> 1 | F35: lumpsum | G35: =A.Ops!G35 -> 0 | H35: =A.Ops!H35 -> 1 | I35: =A.Ops!I35 -> 0 | J35: =I35 -> 0 | L35: 0 | N35: =IF(K35=1, ($N$87/$M$87), 0) -> 0
B36: Food security improved | E36: =A.Ops!E36 -> 0 | G36: =A.Ops!G36 -> 0 | H36: =A.Ops!H36 -> 0 | I36: =A.Ops!I36 -> 750000 | L36: =SUM(L37:L38) -> 0 | N36: =SUM(N37:N38) -> 0
C37: Adequate quantity and quality of food aid provided (<5,000 refugees) | E37: =A.Ops!E37 -> 1250 | F37: family | G37: =A.Ops!G37 -> 100 | H37: =A.Ops!H37 -> 6 | I37: =A.Ops!I37 -> 750000 | J37: =I37 -> 750000 | K37: 1 | L37: 0 | N37: =IF(K37=1, ($N$87/$M$87), 0) -> 0
C38: Unspecified output - Food Security | E38: =A.Ops!E38 -> 1 | F38: lumpsum | G38: =A.Ops!G38 -> 0 | H38: =A.Ops!H38 -> 1 | I38: =A.Ops!I38 -> 0 | J38: =I38 -> 0 | L38: 0 | N38: =IF(K38=1, ($N$87/$M$87), 0) -> 0
B39: Population has sufficient access to energy | E39: =A.Ops!E39 -> 0 | G39: =A.Ops!G39 -> 0 | H39: =A.Ops!H39 -> 0 | I39: =A.Ops!I39 -> 300000 | L39: =SUM(L40:L41) -> 0 | N39: =SUM(N40:N41) -> 0
C40: Domestic fuel provided | E40: =A.Ops!E40 -> 5000 | F40: family | G40: =A.Ops!G40 -> 10 | H40: =A.Ops!H40 -> 6 | I40: =A.Ops!I40 -> 300000 | J40: =I40 -> 300000 | K40: 1 | L40: 0 | N40: =IF(K40=1, ($N$87/$M$87), 0) -> 0
C41: Unspecified output - Energy | E41: =A.Ops!E41 -> 1 | F41: lumpsum | G41: =A.Ops!G41 -> 0 | H41: =A.Ops!H41 -> 1 | I41: =A.Ops!I41 -> 0 | J41: =I41 -> 0 | L41: 0 | N41: =IF(K41=1, ($N$87/$M$87), 0) -> 0
B42: Nutritional well-being improved | E42: =A.Ops!E42 -> 0 | G42: =A.Ops!G42 -> 0 | H42: =A.Ops!H42 -> 0 | I42: =A.Ops!I42 -> 134320 | L42: =SUM(L43:L46) -> 0 | N42: =SUM(N43:N46) -> 0
C43: Complementary food supplements provided and monitored | D43: (feeding centre) | E43: =A.Ops!E43 -> 1 | F43: centre | G43: =A.Ops!G43 -> 10000 | H43: =A.Ops!H43 -> 1 | I43: =A.Ops!I43 -> 10000 | J43: =SUM(I43:I45) -> 134320 | K43: 1 | L43: 0 | N43: =IF(K43=1, ($N$87/$M$87), 0) -> 0
C44: Complementary food supplements provided and monitored | D44: (Plumpynut) | E44: =A.Ops!E44 -> 80 | F44: box | G44: =A.Ops!G44 -> 54 | H44: =A.Ops!H44 -> 1 | I44: =A.Ops!I44 -> 4320 | L44: 0 | N44: =IF(K44=1, ($N$87/$M$87), 0) -> 0
C45: Complementary food supplements provided and monitored (>5,000 refugees) | E45: =A.Ops!E45 -> 4000 | F45: <5/month | G45: =A.Ops!G45 -> 5 | H45: =A.Ops!H45 -> 6 | I45: =A.Ops!I45 -> 120000 | L45: 0 | N45: =IF(K45=1, ($N$87/$M$87), 0) -> 0
C46: Unspecified output - Nutrition | E46: =A.Ops!E46 -> 1 | F46: lumpsum | G46: =A.Ops!G46 -> 0 | H46: =A.Ops!H46 -> 1 | I46: =A.Ops!I46 -> 0 | J46: =SUM(I46) -> 0 | L46: 0 | N46: =IF(K46=1, ($N$87/$M$87), 0) -> 0
A47: Logistics and Operations Support | E47: =A.Ops!E47 -> 0 | G47: =A.Ops!G47 -> 0 | H47: =A.Ops!H47 -> 0 | I47: =A.Ops!I47 -> 1269892.83 | L47: =SUM(L48,L51) -> 0 | N47: =SUM(N48,N51) -> 0
B48: Logistics and supply optimized to serve operational needs | E48: =A.Ops!E48 -> 0 | G48: =A.Ops!G48 -> 0 | H48: =A.Ops!H48 -> 0 | I48: =A.Ops!I48 -> 293123.82 | L48: =SUM(L49:L50) -> 0 | N48: =SUM(N49:N50) -> 0
C49: Distribution of goods provided (6% of total procurement costs) | E49: =A.Ops!E49 -> 1 | F49: lumpsum | G49: =A.Ops!G49 -> 293123.82 | H49: =A.Ops!H49 -> 1 | I49: =A.Ops!I49 -> 293123.82 | J49: =I49 -> 293123.82 | K49: 1 | L49: 0 | N49: =IF(K49=1, ($N$87/$M$87), 0) -> 0
C50: Unspecified output - Supply Chain/ Logistics | E50: =A.Ops!E50 -> 1 | F50: lumpsum | G50: =A.Ops!G50 -> 0 | H50: =A.Ops!H50 -> 1 | I50: =A.Ops!I50 -> 0 | J50: =I50 -> 0 | L50: 0 | N50: =IF(K50=1, ($N$87/$M$87), 0) -> 0
B51: Operations management, coordination and support strengthened and optimized | E51: =A.Ops!E51 -> 0 | G51: =A.Ops!G51 -> 0 | H51: =A.Ops!H51 -> 0 | I51: =A.Ops!I51 -> 976769.0096 | L51: =SUM(L52:L53) -> 0 | N51: =SUM(N52:N53) -> 0
C52: General project management services provided (8% of total ops) | E52: =A.Ops!E52 -> 1 | F52: lumpsum | G52: =A.Ops!G52 -> 976769.0096 | H52: =A.Ops!H52 -> 1 | I52: =A.Ops!I52 -> 976769.0096 | J52: =I52 -> 976769.0096 | K52: 1 | L52: 0 | N52: =IF(K52=1, ($N$87/$M$87), 0) -> 0
C53: Unspecified output - Operations Management | E53: =A.Ops!E53 -> 1 | F53: lumpsum | G53: =A.Ops!G53 -> 0 | H53: =A.Ops!H53 -> 1 | I53: =A.Ops!I53 -> 0 | J53: =I53 -> 0 | L53: 0 | N53: =IF(K53=1, ($N$87/$M$87), 0) -> 0
A54: Security from Violence and Exploitation | E54: =A.Ops!E54 -> 0 | G54: =A.Ops!G54 -> 0 | H54: =A.Ops!H54 -> 0 | I54: =A.Ops!I54 -> 730000 | L54: =SUM(L55,L58,L61) -> 0 | N54: =SUM(N55,N58,N61) -> 0
B55: Risk of SGBV is reduced and quality of response improved | E55: =A.Ops!E55 -> 0 | G55: =A.Ops!G55 -> 0 | H55: =A.Ops!H55 -> 0 | I55: =A.Ops!I55 -> 10000 | L55: =SUM(L56:L57) -> 0 | N55: =SUM(N56:N57) -> 0
C56: Assessment and analysis undertaken | E56: =A.Ops!E56 -> 2 | F56: camp | G56: =A.Ops!G56 -> 5000 | H56: =A.Ops!H56 -> 1 | I56: =A.Ops!I56 -> 10000 | J56: =I56 -> 10000 | K56: 1 | L56: 0 | N56: =IF(K56=1, ($N$87/$M$87), 0) -> 0
C57: Unspecified output - SGBV Prevention and Response | E57: =A.Ops!E57 -> 1 | F57: lumpsum | G57: =A.Ops!G57 -> 0 | H57: =A.Ops!H57 -> 1 | I57: =A.Ops!I57 -> 0 | J57: =I57 -> 0 | L57: 0 | N57: =IF(K57=1, ($N$87/$M$87), 0) -> 0
B58: Protection from effects of armed conflict strengthened | E58: =A.Ops!E58 -> 0 | G58: =A.Ops!G58 -> 0 | H58: =A.Ops!H58 -> 0 | I58: =A.Ops!I58 -> 600000 | L58: =SUM(L59:L60) -> 0 | N58: =SUM(N59:N60) -> 0
C59: Protection by presence provided | E59: =A.Ops!E59 -> 20000 | F59: person | G59: =A.Ops!G59 -> 5 | H59: =A.Ops!H59 -> 6 | I59: =A.Ops!I59 -> 600000 | J59: =I59 -> 600000 | K59: 1 | L59: 0 | N59: =IF(K59=1, ($N$87/$M$87), 0) -> 0
C60: Unspecified output - Effects of Armed Conflict | E60: =A.Ops!E60 -> 1 | F60: lumpsum | G60: =A.Ops!G60 -> 0 | H60: =A.Ops!H60 -> 1 | I60: =A.Ops!I60 -> 0 | J60: =I60 -> 0 | L60: 0 | N60: =IF(K60=1, ($N$87/$M$87), 0) -> 0
B61: Protection of children strengthened | E61: =A.Ops!E61 -> 0 | G61: =A.Ops!G61 -> 0 | H61: =A.Ops!H61 -> 0 | I61: =A.Ops!I61 -> 120000 | L61: =SUM(L62:L64) -> 0 | N61: =SUM(N62:N64) -> 0
C62: Measures to assist children w mental/physical disabilities established/sustained | E62: =A.Ops!E62 -> 6000 | F62: children | G62: =A.Ops!G62 -> 10 | H62: =A.Ops!H62 -> 1 | I62: =A.Ops!I62 -> 60000 | J62: =I62 -> 60000 | K62: 1 | L62: 0 | N62: =IF(K62=1, ($N$87/$M$87), 0) -> 0
C63: Special arrangements for protection and care of UASC established | E63: =A.Ops!E63 -> 6000 | F63: children | G63: =A.Ops!G63 -> 10 | H63: =A.Ops!H63 -> 1 | I63: =A.Ops!I63 -> 60000 | J63: =I63 -> 60000 | K63: 1 | L63: 0 | N63: =IF(K63=1, ($N$87/$M$87), 0) -> 0
C64: Unspecified output - Protection of Children | E64: =A.Ops!E64 -> 1 | F64: lumpsum | G64: =A.Ops!G64 -> 0 | H64: =A.Ops!H64 -> 1 | I64: =A.Ops!I64 -> 0 | J64: =I64 -> 0 | L64: 0 | N64: =IF(K64=1, ($N$87/$M$87), 0) -> 0
A65: Fair Protection Processes and Documentation | E65: =A.Ops!E65 -> 0 | G65: =A.Ops!G65 -> 0 | H65: =A.Ops!H65 -> 0 | I65: =A.Ops!I65 -> 280000 | L65: =SUM(L66,L69) -> 0 | N65: =SUM(N66,N69) -> 0
B66: Reception conditions improved | E66: =A.Ops!E66 -> 0 | G66: =A.Ops!G66 -> 0 | H66: =A.Ops!H66 -> 0 | I66: =A.Ops!I66 -> 160000 | L66: =SUM(L67:L68) -> 0 | N66: =SUM(N67:N68) -> 0
C67: Reception/transit centre infrastructure established and maintained | E67: =A.Ops!E67 -> 20000 | F67: person | G67: =A.Ops!G67 -> 8 | H67: =A.Ops!H67 -> 1 | I67: =A.Ops!I67 -> 160000 | J67: =I67 -> 160000 | K67: 1 | L67: 0 | N67: =IF(K67=1, ($N$87/$M$87), 0) -> 0
C68: Unspecified output - Reception Conditions | E68: =A.Ops!E68 -> 1 | F68: lumpsum | G68: =A.Ops!G68 -> 0 | H68: =A.Ops!H68 -> 1 | I68: =A.Ops!I68 -> 0 | J68: =I68 -> 0 | L68: 0 | N68: =IF(K68=1, ($N$87/$M$87), 0) -> 0
B69: Level of individual documentation increased | E69: =A.Ops!E69 -> 0 | G69: =A.Ops!G69 -> 0 | H69: =A.Ops!H69 -> 0 | I69: =A.Ops!I69 -> 120000 | L69: =SUM(L70:L71) -> 0 | N69: =SUM(N70:N71) -> 0
C70: Issuance of ID & travel documents to persons of concern supported | E70: =A.Ops!E70 -> 20000 | F70: person | G70: =A.Ops!G70 -> 6 | H70: =A.Ops!H70 -> 1 | I70: =A.Ops!I70 -> 120000 | J70: =I70 -> 120000 | K70: 1 | L70: 0 | N70: =IF(K70=1, ($N$87/$M$87), 0) -> 0
C71: Unspecified output - Individual Documentation | E71: =A.Ops!E71 -> 1 | F71: lumpsum | G71: =A.Ops!G71 -> 0 | H71: =A.Ops!H71 -> 1 | I71: =A.Ops!I71 -> 0 | J71: =I71 -> 0 | L71: 0 | N71: =IF(K71=1, ($N$87/$M$87), 0) -> 0
A72: Leadership, Coordination and Partnerships | E72: =A.Ops!E72 -> 0 | G72: =A.Ops!G72 -> 0 | H72: =A.Ops!H72 -> 0 | I72: =A.Ops!I72 -> 30000 | L72: =SUM(L73,L77) -> 0 | N72: =SUM(N73,N77) -> 0
B73: Camp management and coordination refined and improved | E73: =A.Ops!E73 -> 0 | G73: =A.Ops!G73 -> 0 | H73: =A.Ops!H73 -> 0 | I73: =A.Ops!I73 -> 20000 | K73: =IF(J73>0, 1, "") ->  | L73: =SUM(L74:L76) -> 0 | M73: =IF(L73>0, 1, "") ->  | N73: =SUM(N74:N76) -> 0
C74: Assessment of site planning conducted against safety & humanitarian standards | E74: =A.Ops!E74 -> 2 | F74: camp | G74: =A.Ops!G74 -> 5000 | H74: =A.Ops!H74 -> 1 | I74: =A.Ops!I74 -> 10000 | J74: =I74 -> 10000 | K74: 1 | L74: =IF(K74=1, ($L$87/$K$87), 0) -> 0 | N74: =IF(K74=1, ($N$87/$M$87), 0) -> 0
C75: Roles and responsibilities for camp managers defined and agreed | E75: =A.Ops!E75 -> 2 | F75: camp | G75: =A.Ops!G75 -> 5000 | H75: =A.Ops!H75 -> 1 | I75: =A.Ops!I75 -> 10000 | J75: =I75 -> 10000 | K75: 1 | L75: 0 | N75: =IF(K75=1, ($N$87/$M$87), 0) -> 0
C76: Unspecified output - Camp Mgmt. & Coordination | E76: =A.Ops!E76 -> 1 | F76: lumpsum | G76: =A.Ops!G76 -> 0 | H76: =A.Ops!H76 -> 1 | I76: =A.Ops!I76 -> 0 | J76: =I76 -> 0 | L76: 0 | N76: =IF(K76=1, ($N$87/$M$87), 0) -> 0
B77: Emergency management strengthened | E77: =A.Ops!E77 -> 0 | G77: =A.Ops!G77 -> 0 | H77: =A.Ops!H77 -> 0 | I77: =A.Ops!I77 -> 10000 | L77: =SUM(L78:L79) -> 0 | N77: =SUM(N78:N79) -> 0
C78: Advocacy conducted | E78: =A.Ops!E78 -> 20000 | F78: person | G78: =A.Ops!G78 -> 0.5 | H78: =A.Ops!H78 -> 1 | I78: =A.Ops!I78 -> 10000 | J78: =I78 -> 10000 | K78: 1 | L78: 0 | N78: =IF(K78=1, ($N$87/$M$87), 0) -> 0
C79: Unspecified output - Emergency Management | E79: =A.Ops!E79 -> 1 | F79: lumpsum | G79: =A.Ops!G79 -> 0 | H79: =A.Ops!H79 -> 1 | I79: =A.Ops!I79 -> 0 | J79: =I79 -> 0 | L79: 0 | N79: =IF(K79=1, ($N$87/$M$87), 0) -> 0
A80: Favourable Protection Environment | E80: =A.Ops!E80 -> 0 | G80: =A.Ops!G80 -> 0 | H80: =A.Ops!H80 -> 0 | I80: =A.Ops!I80 -> 360000 | L80: =SUM(L81,L84) -> 0 | N80: =SUM(N81,N84) -> 0
B81: Access to legal assistance and legal remedies improved | E81: =A.Ops!E81 -> 0 | G81: =A.Ops!G81 -> 0 | H81: =A.Ops!H81 -> 0 | I81: =A.Ops!I81 -> 240000 | L81: =SUM(L82:L83) -> 0 | N81: =SUM(N82:N83) -> 0
C82: Legal services and clinics established or provided | E82: =A.Ops!E82 -> 20000 | F82: person | G82: =A.Ops!G82 -> 2 | H82: =A.Ops!H82 -> 6 | I82: =A.Ops!I82 -> 240000 | J82: =I82 -> 240000 | K82: 1 | L82: 0 | N82: =IF(K82=1, ($N$87/$M$87), 0) -> 0
C83: Unspecified output - Legal Remedies & Assistance | E83: =A.Ops!E83 -> 1 | F83: lumpsum | G83: =A.Ops!G83 -> 0 | H83: =A.Ops!H83 -> 1 | I83: =A.Ops!I83 -> 0 | J83: =I83 -> 0 | L83: 0 | N83: =IF(K83=1, ($N$87/$M$87), 0) -> 0
B84: Access to the territory improved and risk of refoulement reduced | E84: =A.Ops!E84 -> 0 | G84: =A.Ops!G84 -> 0 | H84: =A.Ops!H84 -> 0 | I84: =A.Ops!I84 -> 120000 | L84: =SUM(L85:L86) -> 0 | N84: =SUM(N85:N86) -> 0
C85: Systematic and independent border monitoring established or conducted | E85: =A.Ops!E85 -> 20000 | F85: person | G85: =A.Ops!G85 -> 1 | H85: =A.Ops!H85 -> 6 | I85: =A.Ops!I85 -> 120000 | J85: =I85 -> 120000 | K85: 1 | L85: 0 | N85: =IF(K85=1, ($N$87/$M$87), 0) -> 0
C86: Unspecified output - Access & Non Refoulement | E86: =A.Ops!E86 -> 1 | F86: lumpsum | G86: =A.Ops!G86 -> 0 | H86: =A.Ops!H86 -> 1 | I86: =A.Ops!I86 -> 0 | J86: =I86 -> 0 | L86: 0 | N86: =IF(K86=1, ($N$87/$M$87), 0) -> 0
A87: Grand Total | I87: =A.Ops!I87 -> 13186381.63 | J87: =SUM(J5:J86) -> 13186381.63 | K87: =SUM(K5:K86) -> 25 | L87: ='C.ABOD'!C27 -> 0 | M87: =K87 -> 25 | N87: ='E. Positions (optional)'!J21 -> 0
K88: check | L88: =SUM(L80,L72,L65,L54,L47,L5) -> 0 | M88: check | N88: =SUM(N80,N72,N65,N54,N47,N5) -> 0
